[Event "World Junior U20 Girls 2018"]
[Site "Gebze"]
[Date "2018.09.14"]
[Round "10"]
[White "Nastase, Andreea-Cristina"]
[Black "De Silva, Tenara"]
[Result "0-1"]
[ECO "D85"]
[WhiteElo "1983"]
[BlackElo "1764"]
[Annotator "NA"]
[PlyCount "140"]
[EventDate "2018.09.05"]
[EventType "swiss"]
[EventCountry "TUR"]
[SourceTitle "playchess.com"]
[Source "ChessBase"]
[SourceQuality "1"]
[TimeControl "40/5400+30:1800+30"]

1. d4 {[%emt 0:00:30]} Nf6 {[%emt 0:00:30]} 2. c4 {[%emt 0:00:30]} g6 {[%emt 0:00:30]} 3. Nc3 {[%emt 0:00:00]} d5 {[%emt 0:00:30]} 4. cxd5 {[%emt 0:00:00]} Nxd5 {[%emt 0:00:00]} 5. e4 {[%emt 0:00:00]} Nxc3 {[%emt 0:00:00]} 6. bxc3 {[%emt 0:00:00]} Bg7 {[%emt 0:01:30]} 7. Be3 {[%emt 0:00:00]} c5 {[%emt 0:00:30]} 8. Rc1 {[%emt 0:01:00]} Nc6 {[%emt 0:01:30]} 9. Nf3 {[%emt 0:00:30]} cxd4 {[%emt 0:02:30] D85: Exchange Grünfeld: Unusual White 7th moves and lines with 7 Nf3} 10. cxd4 {[%emt 0:00:30]} O-O {[%emt 0:00:30]} (10... e6 11. Bc4 O-O 12. O-O Na5 13. Bd3 b6 14. h4 Bb7 15. h5 f5 16. e5 gxh5 17. Ng5 {1-0 (42) Bukavshin,I (2618)-Inarkiev,E (2706) Moscow 2015 CBM 166 [CB]}) 11. d5 {[%emt 0:11:30]} Ne5 {[%emt 0:01:30] LiveBook: 6 Games} 12. Nxe5 {[%emt 0:02:30]} Bxe5 {[%emt 0:00:30]} 13. Be2 {[%emt 0:01:30]} e6 {[%emt 0:08:30]} 14. O-O $146 {[%emt 0:10:30]} ({Predecessor:} 14. f4 Bc7 15. O-O exd5 16. Qxd5 Bb6 17. Bxb6 Qxb6+ {½-½ (34) Krishna Teja,N (2049)-Nishant,M (2129) Pune 2014}) 14... exd5 {[%emt 0:02:30]} 15. Qxd5 {[%emt 0:00:30]} Qxd5 {[%emt 0:04:30]} 16. exd5 {[%emt 0:00:00]} b6 {[%emt 0:00:00]} 17. Rfd1 {[%emt 0:10:00]} Rd8 {[%emt 0:05:00]} 18. Bd4 {[%emt 0:05:30]} Bxd4 {[%emt 0:04:30]} 19. Rxd4 {[%emt 0:00:30]} Bb7 {[%emt 0:00:30]} 20. d6 {[%emt 0:03:30]} Rac8 {[%emt 0:02:30]} 21. Rxc8 {[%emt 0:00:30]} Bxc8 {[%emt 0:00:30]} 22. h3 {[%emt 0:01:30]} Be6 {[%emt 0:00:30]} 23. a3 {[%emt 0:02:30]} f5 {[%emt 0:02:30]} 24. g4 {[%emt 0:04:30]} Kf7 {[%emt 0:02:30]} 25. gxf5 $17 {[%emt 0:01:30]} (25. g5 $11 {keeps the balance.}) 25... Bxf5 {[%emt 0:00:30]} 26. Bc4+ {[%emt 0:00:30]} Kf6 {[%emt 0:00:30]} 27. Rh4 {[%emt 0:03:30]} h5 {[%emt 0:00:30]} 28. Rd4 {[%emt 0:00:30]} Bxh3 {[%emt 0:00:30]} 29. Bd3 {[%emt 0:00:30]} Bf5 {[%emt 0:02:30]} 30. Bxf5 {[%emt 0:03:30]} Kxf5 {[%emt 0:01:30]} 31. Rd3 {[%emt 0:00:30]} Ke5 {[%emt 0:00:30]} 32. d7 {[%emt 0:00:30]} Ke6 {[%emt 0:02:30]} 33. Rg3 {[%emt 0:00:30]} Rxd7 {[%emt 0:01:30]} 34. Rxg6+ {[%emt 0:00:00]} Kf5 {[%emt 0:00:30]} 35. Rg3 {[%emt 0:00:00]} Rd4 {[%emt 0:00:30]} 36. Rc3 {[%emt 0:01:30]} Kg4 {[%emt 0:01:30]} 37. Rg3+ {[%emt 0:00:30]} Kf5 {[%emt 0:00:30]} 38. Rc3 {[%emt 0:00:30]} h4 {[%emt 0:02:30]} 39. Kg2 {[%emt 0:00:30]} Kg4 {[%emt 0:00:30]} 40. Re3 {[%emt 0:00:00]} b5 {[%emt 0:00:00]} 41. Rb3 {[%emt 0:07:00]} a6 {[%emt 0:03:00]} 42. Rc3 {[%emt 0:00:30]} Rf4 {[%emt 0:03:30]} 43. f3+ {[%emt 0:03:30]} Kg5 {[%emt 0:00:30]} 44. Rc5+ {[%emt 0:00:30]} Rf5 {[%emt 0:00:00]} 45. Rc6 {[%emt 0:00:30]} a5 {[%emt 0:00:00]} 46. Ra6 {[%emt 0:00:00]} b4 {[%emt 0:07:30]} 47. axb4 {[%emt 0:03:00]} axb4 {[%emt 0:00:30]} 48. Rb6 {[%emt 0:00:30]} Rf4 {[%emt 0:00:30]} 49. Rb5+ {[%emt 0:00:00]} Kf6 {[%emt 0:00:00]} 50. Kf2 {[%emt 0:00:00]} Rc4 {[%emt 0:01:00]} 51. Ke3 {[%emt 0:00:30]} Ke6 {[%emt 0:02:30]} 52. Kd3 {[%emt 0:00:30]} Rc3+ {[%emt 0:00:30]} 53. Ke4 {[%emt 0:01:30]} b3 {[%emt 0:01:30]} 54. Rb6+ {[%emt 0:00:30]} Kd7 {[%emt 0:00:30]} 55. Kf4 {[%emt 0:01:30]} Kc7 {[%emt 0:00:30]} 56. Rb4 {[%emt 0:00:00]} Kc6 {[%emt 0:00:00]} 57. Kg4 {[%emt 0:01:00]} Kc5 {[%emt 0:00:00]} 58. Rb8 {[%emt 0:00:00]} Rc4+ {[%emt 0:02:30]} 59. f4 {[%emt 0:01:00]} Rb4 {[%emt 0:01:30]} 60. Rc8+ {[%emt 0:00:30]} Kd4 {[%emt 0:00:00]} 61. Rd8+ {[%emt 0:03:30]} Ke3 {[%emt 0:00:00]} 62. Re8+ {[%emt 0:00:30]} Kd2 {[%emt 0:01:30]} 63. Rd8+ {[%emt 0:00:30]} Kc3 {[%emt 0:00:30]} 64. Rc8+ {[%emt 0:00:30]} Rc4 {[%emt 0:00:00]} 65. Rb8 {[%emt 0:00:30]} b2 {[%emt 0:00:00]} 66. Kg5 {[%emt 0:01:30]} Kc2 {[%emt 0:00:30]} 67. f5 {[%emt 0:00:30]} b1=Q {[%emt 0:00:30]} 68. Rxb1 {[%emt 0:00:30]} Kxb1 {[%emt 0:00:30]} 69. f6 {[%emt 0:00:00]} h3 {[%emt 0:00:00]} 70. f7 {[%emt 0:00:00]} Rc8 {[%emt 0:00:00]} 0-1

[Event "World Junior U20 Girls 2018"]
[Site "Gebze"]
[Date "2018.09.14"]
[Round "10"]
[White "Ayan, Bengu Sena"]
[Black "Huttl, Sofie"]
[Result "1/2-1/2"]
[ECO "E04"]
[WhiteElo "1976"]
[BlackElo "1727"]
[Annotator "NA"]
[PlyCount "69"]
[EventDate "2018.09.05"]
[EventType "swiss"]
[EventCountry "TUR"]
[SourceTitle "playchess.com"]
[Source "ChessBase"]
[SourceQuality "1"]
[TimeControl "40/5400+30:1800+30"]

1. d4 {[%emt 0:00:30]} d5 {[%emt 0:00:30]} 2. c4 {[%emt 0:00:30]} e6 {[%emt 0:00:30]} 3. Nf3 {[%emt 0:00:00]} Nf6 {[%emt 0:00:00]} 4. g3 {[%emt 0:00:00]} c6 {[%emt 0:04:00]} 5. Bg2 {[%emt 0:00:00]} dxc4 {[%emt 0:01:30]} 6. Ne5 {[%emt 0:06:00]} Bb4+ {[%emt 0:05:30]} 7. Nc3 {[%emt 0:01:30]} Nd5 {[%emt 0:01:30]} 8. Bd2 {[%emt 0:02:30]} b5 $14 {[%emt 0:01:30] LiveBook: 7 Games} 9. O-O {[%emt 0:06:30]} Ba5 {[%emt 0:07:30]} 10. e4 {[%emt 0:16:30]} Ne7 {[%emt 0:06:30]} 11. Be3 {[%emt 0:13:30]} Nd7 {[%emt 0:04:30]} 12. Nxd7 {[%emt 0:08:30]} Qxd7 {[%emt 0:02:30]} 13. Qh5 {[%emt 0:02:30]} Bb6 {[%emt 0:04:30]} 14. Rad1 {[%emt 0:02:30]} O-O {[%emt 0:10:30]} 15. d5 {[%emt 0:05:30]} exd5 {[%emt 0:07:30]} 16. exd5 {[%emt 0:06:30]} Qf5 {[%emt 0:17:30]} 17. Qe2 {[%emt 0:03:30]} Nxd5 {[%emt 0:06:03]} 18. Nxd5 {[%emt 0:01:30]} cxd5 {[%emt 0:00:07]} 19. Rxd5 {[%emt 0:06:36]} Qe6 {[%emt 0:00:25]} 20. Rxb5 {[%emt 0:03:55]} Ba6 {[%emt 0:00:08]} 21. Rxb6 {[%emt 0:07:59]} axb6 {[%emt 0:00:06]} 22. Bxa8 {[%emt 0:00:22]} Rxa8 {[%emt 0:00:04]} 23. Qf3 {[%emt 0:00:18]} Rd8 {[%emt 0:03:37]} 24. Rd1 {[%emt 0:02:11]} Rxd1+ {[%emt 0:04:12]} 25. Qxd1 {[%emt 0:00:02]} Qf6 {[%emt 0:00:48]} 26. Bd4 {[%emt 0:00:39]} Qc6 {[%emt 0:01:00]} 27. Bc3 {[%emt 0:01:11]} f6 {[%emt 0:00:54]} 28. f3 {[%emt 0:00:44]} Kf7 {[%emt 0:01:03]} 29. Qe2 {[%emt 0:00:26]} Qe6 {[%emt 0:00:38]} 30. Qd2 {[%emt 0:00:40]} Bb7 {[%emt 0:01:19]} 31. Kf2 {[%emt 0:00:27]} Qd5 {[%emt 0:00:37]} 32. Qe3 {[%emt 0:00:23]} b5 {[%emt 0:03:22]} 33. Qf4 {[%emt 0:00:26]} Qc6 {[%emt 0:00:12]} 34. Qg4 {[%emt 0:00:43]} Qd5 {[%emt 0:01:08]} 35. Qf4 {[%emt 0:00:14]} 1/2-1/2

[Event "World Junior U20 Girls 2018"]
[Site "Gebze"]
[Date "2018.09.14"]
[Round "10"]
[White "Celik, Eda"]
[Black "Anacoglu, Cisel"]
[Result "1/2-1/2"]
[ECO "C88"]
[WhiteElo "1970"]
[BlackElo "1791"]
[Annotator "NA"]
[PlyCount "81"]
[EventDate "2018.09.05"]
[EventType "swiss"]
[EventCountry "TUR"]
[SourceTitle "playchess.com"]
[Source "ChessBase"]
[SourceQuality "1"]
[TimeControl "40/5400+30:1800+30"]

1. e4 {[%emt 0:00:30]} e5 {[%emt 0:00:30]} 2. Nf3 {[%emt 0:00:30]} Nc6 {[%emt 0:00:30]} 3. Bb5 {[%emt 0:00:00]} a6 {[%emt 0:00:00]} 4. Ba4 {[%emt 0:00:00]} Nf6 {[%emt 0:00:00]} 5. O-O {[%emt 0:00:30]} Be7 {[%emt 0:00:00]} 6. Re1 {[%emt 0:00:00]} b5 {[%emt 0:00:00]} 7. Bb3 {[%emt 0:00:00]} O-O {[%emt 0:00:00]} 8. h3 {[%emt 0:01:30]} Bb7 {[%emt 0:00:00]} 9. d3 {[%emt 0:09:30]} d5 {[%emt 0:02:30] C88: Closed Ruy Lopez: Anti-Marshall Systems} 10. exd5 {[%emt 0:13:30]} Nxd5 {[%emt 0:00:30]} 11. Nxe5 {[%emt 0:00:30]} Nd4 {[%emt 0:00:00]} 12. Nd2 {[%emt 0:11:30]} f6 $146 {[%emt 0:14:00]} ({Predecessor:} 12... c5 13. Ndf3 Nxb3 14. axb3 f6 15. Ng4 Qd7 16. Bd2 Rae8 17. Re2 {0-1 (48) Jakubowski,K (2530)-Wojtaszek,R (2734) Poland 2017}) 13. Nef3 {[%emt 0:03:30]} Nxb3 {[%emt 0:02:30]} 14. Nxb3 {[%emt 0:10:30]} c5 {[%emt 0:03:30]} 15. c3 {[%emt 0:03:30]} a5 {[%emt 0:03:30]} 16. d4 {[%emt 0:06:30]} c4 {[%emt 0:04:30]} 17. Nc5 {[%emt 0:02:30]} Bxc5 {[%emt 0:16:30]} 18. dxc5 {[%emt 0:00:30]} Qc7 {[%emt 0:04:30]} 19. Nd4 {[%emt 0:04:30]} Qxc5 {[%emt 0:01:30]} 20. Ne6 {[%emt 0:01:30]} Qc6 {[%emt 0:00:30]} 21. Qg4 {[%emt 0:02:30]} Rf7 {[%emt 0:03:30]} 22. Bh6 {[%emt 0:08:48]} Qd7 {[%emt 0:06:30]} 23. Qg3 {[%emt 0:05:33]} Kh8 $14 {[%emt 0:13:30]} 24. Nc5 {[%emt 0:05:52]} Qc6 {[%emt 0:03:30]} 25. Be3 {[%emt 0:08:10]} Nxe3 {[%emt 0:00:30]} 26. Nxb7 {[%emt 0:00:05]} Qxg2+ {[%emt 0:11:08]} 27. Qxg2 {[%emt 0:00:30]} Nxg2 {[%emt 0:00:00]} 28. Nd6 {[%emt 0:00:56]} Nxe1 {[%emt 0:00:26]} 29. Nxf7+ {[%emt 0:00:30]} Kg8 {[%emt 0:00:01]} 30. Nh6+ {[%emt 0:00:35]} gxh6 {[%emt 0:00:30]} 31. Rxe1 {[%emt 0:00:00]} Kf7 {[%emt 0:00:07]} 32. Rd1 {[%emt 0:00:45]} Ke6 {[%emt 0:09:49]} 33. Re1+ {[%emt 0:00:28]} Kd6 {[%emt 0:01:31]} 34. Rd1+ {[%emt 0:00:17]} Kc6 {[%emt 0:00:15]} 35. Rd4 {[%emt 0:00:42]} Rg8+ {[%emt 0:00:36]} 36. Kf1 {[%emt 0:00:23]} Rg5 {[%emt 0:00:22]} 37. Rf4 {[%emt 0:00:45]} f5 {[%emt 0:00:32]} 38. h4 {[%emt 0:00:34]} Rg4 {[%emt 0:00:16]} 39. Rxf5 {[%emt 0:00:57]} Rxh4 {[%emt 0:00:01]} 40. Rf6+ {[%emt 0:00:27]} Kc5 {[%emt 0:00:00]} 41. Rf5+ {[%emt 0:07:43]} 1/2-1/2

[Event "World Junior U20 Girls 2018"]
[Site "Gebze"]
[Date "2018.09.14"]
[Round "10"]
[White "Meenal Gupta"]
[Black "Ghukasyan, Siranush"]
[Result "0-1"]
[ECO "C92"]
[WhiteElo "1963"]
[BlackElo "2205"]
[Annotator "NA"]
[PlyCount "80"]
[EventDate "2018.09.05"]
[EventType "swiss"]
[EventCountry "TUR"]
[SourceTitle "playchess.com"]
[Source "ChessBase"]
[SourceQuality "1"]
[TimeControl "40/5400+30:1800+30"]

1. e4 {[%emt 0:00:30]} e5 {[%emt 0:00:30]} 2. Nf3 {[%emt 0:00:30]} Nc6 {[%emt 0:00:30]} 3. Bb5 {[%emt 0:00:30]} a6 {[%emt 0:00:00]} 4. Ba4 {[%emt 0:00:00]} Nf6 {[%emt 0:00:00]} 5. O-O {[%emt 0:00:00]} Be7 {[%emt 0:00:00]} 6. Re1 {[%emt 0:00:00]} b5 {[%emt 0:00:00]} 7. Bb3 {[%emt 0:00:00]} d6 {[%emt 0:00:30]} 8. c3 {[%emt 0:00:30]} O-O {[%emt 0:00:30]} 9. h3 {[%emt 0:00:00]} Bb7 {[%emt 0:00:00]} 10. d4 {[%emt 0:05:00]} Re8 {[%emt 0:00:00]} 11. Nbd2 {[%emt 0:00:30]} exd4 {[%emt 0:00:00] C92: Closed Ruy Lopez: 9...Be6, Karpov and Flohr-Zaitsev Variations} (11... Bf8 12. a3 h6 13. Bc2 Nb8 14. b3 Nbd7 15. Bb2 c6 16. Bd3 g6 17. Qc2 Nh5 18. Bf1 Nf4 19. b4 Rc8 20. c4 exd4 21. Bxd4 bxc4 22. Nxc4 c5 {1-0 (64) Jakovenko,D (2748)-Oparin,G (2609) Satka 2018}) 12. cxd4 {[%emt 0:00:30]} Nd7 {[%emt 0:00:00]} 13. Nf1 {[%emt 0:03:30]} Na5 {[%emt 0:00:00]} 14. Bc2 {[%emt 0:00:30]} Bf6 {[%emt 0:00:00]} 15. Ng3 {[%emt 0:01:30] LiveBook: 73 Games} g6 {[%emt 0:00:30]} 16. Be3 {[%emt 0:18:30]} Nc4 {[%emt 0:02:30]} 17. b3 $146 {[%emt 0:00:30]} ({Predecessor:} 17. Bc1 c5 18. b3 cxd4 19. Nxd4 Ncb6 20. Bb2 Rc8 {0-1 (43) Navarrete Espi,S (1929)-Mascaro March,P (2369) Palma de Mallorca 2009}) 17... Nxe3 {[%emt 0:00:30]} 18. fxe3 {[%emt 0:00:30]} c5 {[%emt 0:00:30]} 19. Qd2 {[%emt 0:01:30]} h5 {[%emt 0:14:30]} 20. Rad1 {[%emt 0:04:30]} Nf8 {[%emt 0:18:30]} 21. Qf2 {[%emt 0:11:30]} Qe7 {[%emt 0:01:30]} 22. e5 {[%emt 0:03:30]} dxe5 {[%emt 0:02:30]} 23. d5 {[%emt 0:00:30]} Nd7 {[%emt 0:01:30]} 24. e4 $17 {[%emt 0:04:30]} (24. Rf1 $11) 24... Red8 {[%emt 0:01:30]} 25. Nf1 {[%emt 0:02:30]} Nb6 {[%emt 0:02:30]} 26. Ne3 {[%emt 0:00:30]} Nc8 {[%emt 0:02:30]} 27. g4 {[%emt 0:06:30]} hxg4 {[%emt 0:00:00]} 28. Nxg4 {[%emt 0:01:30]} Bg7 {[%emt 0:01:00]} 29. Rf1 {[%emt 0:00:00]} Nd6 {[%emt 0:06:30]} 30. Qxc5 {[%emt 0:02:00]} f5 {[%emt 0:00:30]} 31. Ngh2 {[%emt 0:12:30]} Rac8 {[%emt 0:01:30]} 32. Qf2 {[%emt 0:00:30]} fxe4 {[%emt 0:00:30]} 33. Ne1 {[%emt 0:00:30]} Rf8 {[%emt 0:02:30]} 34. Qe3 {[%emt 0:00:30]} Nf5 {[%emt 0:03:30]} 35. Qxe4 {[%emt 0:00:30]} Qc5+ {[%emt 0:01:30]} 36. Rf2 {[%emt 0:00:30]} Ng3 {[%emt 0:03:30]} 37. Qg2 {[%emt 0:00:30]} Ne2+ {[%emt 0:01:30]} 38. Kf1 {[%emt 0:00:30]} Nf4 {[%emt 0:00:30]} 39. Qg4 {[%emt 0:00:30]} Nxd5 {[%emt 0:03:30]} 40. Qe6+ {[%emt 0:00:30]} Kh8 {[%emt 0:00:00]} 0-1

[Event "World Junior U20 Girls 2018"]
[Site "Gebze"]
[Date "2018.09.14"]
[Round "10"]
[White "Heydarova, Aytaj"]
[Black "Georgescu, Lena"]
[Result "0-1"]
[ECO "B30"]
[WhiteElo "1948"]
[BlackElo "2195"]
[Annotator "NA"]
[PlyCount "82"]
[EventDate "2018.09.05"]
[EventType "swiss"]
[EventCountry "TUR"]
[SourceTitle "playchess.com"]
[Source "ChessBase"]
[SourceQuality "1"]
[TimeControl "40/5400+30:1800+30"]

1. e4 {[%emt 0:00:30]} c5 {[%emt 0:00:30]} 2. Nf3 {[%emt 0:00:30]} Nc6 {[%emt 0:00:00]} 3. Nc3 {[%emt 0:00:00]} d6 {[%emt 0:04:00]} 4. Bc4 {[%emt 0:00:00]} e5 {[%emt 0:01:30]} 5. d3 {[%emt 0:00:30]} Be7 {[%emt 0:00:30]} 6. O-O {[%emt 0:00:30]} Nf6 {[%emt 0:00:00]} 7. Ng5 {[%emt 0:00:00]} O-O {[%emt 0:00:00]} 8. f4 {[%emt 0:00:00]} exf4 {[%emt 0:00:00]} 9. Bxf4 {[%emt 0:00:30]} h6 {[%emt 0:00:00]} 10. Nf3 {[%emt 0:00:30]} Be6 {[%emt 0:00:00]} 11. Nd5 {[%emt 0:00:30]} Nb4 {[%emt 0:00:00] B30: Sicilian: 2...Nc6 3 Bb5, lines without ...g6} (11... a6 12. a3 b5 13. Ba2 Re8 14. c3 Rc8 15. Bg3 Ne5 16. Bxe5 dxe5 17. Nxe5 c4 18. Nxf6+ Bxf6 19. Ng4 Bxg4 20. Qxg4 h5 21. Qf3 Qxd3 22. Qxd3 cxd3 {½-½ (51) Vachier Lagrave,M (2813)-Zhigalko,S (2652) Baku 2016}) 12. Nxb4 {[%emt 0:00:30]} cxb4 {[%emt 0:00:00]} 13. Bxe6 {[%emt 0:00:30]} fxe6 {[%emt 0:00:00]} 14. Qd2 {[%emt 0:02:30]} e5 {[%emt 0:03:30]} 15. Bg3 {[%emt 0:07:30]} a5 {[%emt 0:07:30]} 16. Nh4 {[%emt 0:12:30] [#]} Nh5 $146 {[%emt 0:15:30]} ({Predecessor:} 16... Nxe4 17. Rxf8+ Kxf8 18. dxe4 Bxh4 19. Bxh4 Qxh4 20. Qd5 Re8 21. Rf1+ Ke7 22. Rf7+ Kd8 23. Qxd6+ {1-0 (23) Kovalev,V (2554)-Sveshnikov,E (2502) Liepaja 2014}) 17. Rxf8+ {[%emt 0:02:30]} Bxf8 {[%emt 0:02:30]} 18. Bf2 {[%emt 0:03:30]} Nf4 {[%emt 0:05:30]} 19. Nf5 {[%emt 0:02:30]} d5 {[%emt 0:05:30]} 20. Be3 {[%emt 0:12:30]} dxe4 {[%emt 0:06:30]} 21. dxe4 $17 {[%emt 0:02:30]} ({Better is} 21. Bxf4 $15 exf4 22. Qxf4) 21... Qxd2 {[%emt 0:11:30]} 22. Bxd2 {[%emt 0:00:00]} Rc8 {[%emt 0:00:00]} 23. c3 {[%emt 0:08:00]} bxc3 {[%emt 0:01:00]} 24. bxc3 {[%emt 0:00:30]} Rc4 {[%emt 0:03:30]} 25. Re1 {[%emt 0:07:30]} Nd3 {[%emt 0:03:30]} 26. Re2 {[%emt 0:00:30]} Ra4 {[%emt 0:03:30]} 27. Be3 {[%emt 0:04:30]} Nc5 {[%emt 0:03:30]} 28. Ng3 {[%emt 0:03:30]} Nxe4 {[%emt 0:02:30]} 29. Nxe4 {[%emt 0:00:30]} Rxe4 {[%emt 0:00:00]} 30. Kf2 {[%emt 0:00:00]} Rc4 {[%emt 0:03:22]} 31. Bd2 {[%emt 0:01:00]} e4 {[%emt 0:03:54]} 32. g4 {[%emt 0:01:30]} Kf7 {[%emt 0:00:30]} 33. h3 {[%emt 0:00:30]} Ke6 {[%emt 0:01:10]} 34. h4 {[%emt 0:00:30]} Kd5 {[%emt 0:02:12]} 35. Kg3 {[%emt 0:00:30]} Bd6+ {[%emt 0:00:16]} 36. Kf2 {[%emt 0:01:30]} Be5 {[%emt 0:00:34]} 37. g5 {[%emt 0:01:30]} hxg5 {[%emt 0:01:49]} 38. hxg5 {[%emt 0:00:30]} g6 {[%emt 0:00:38]} 39. Be1 {[%emt 0:01:30]} Bxc3 {[%emt 0:02:01]} 40. Bxc3 {[%emt 0:00:30]} Rxc3 {[%emt 0:00:30]} 41. Rd2+ {[%emt 0:00:30]} Ke5 {[%emt 0:01:34]} 0-1

[Event "World Junior U20 Girls 2018"]
[Site "Gebze"]
[Date "2018.09.14"]
[Round "10"]
[White "Kocyigit, Buse Naz"]
[Black "Dwilewicz, Katarzyna"]
[Result "1-0"]
[ECO "D23"]
[WhiteElo "1944"]
[BlackElo "2081"]
[Annotator "NA"]
[PlyCount "67"]
[EventDate "2018.09.05"]
[EventType "swiss"]
[EventCountry "TUR"]
[SourceTitle "playchess.com"]
[Source "ChessBase"]
[SourceQuality "1"]
[TimeControl "40/5400+30:1800+30"]

1. d4 {[%emt 0:00:30]} d5 {[%emt 0:00:30]} 2. Nf3 {[%emt 0:00:30]} Nf6 {[%emt 0:00:00]} 3. c4 {[%emt 0:00:00]} c6 {[%emt 0:00:00]} 4. Qc2 {[%emt 0:00:00]} dxc4 {[%emt 0:00:30] LiveBook: 1682 Games} 5. Qxc4 {[%emt 0:01:30]} Bf5 {[%emt 0:03:30]} 6. g3 {[%emt 0:01:30]} e6 {[%emt 0:00:30]} 7. Bg2 {[%emt 0:01:30]} Bd6 {[%emt 0:01:30]} 8. Nc3 {[%emt 0:00:30]} O-O {[%emt 0:09:30]} 9. O-O {[%emt 0:06:30]} Na6 $14 {[%emt 0:03:30]} 10. Bg5 {[%emt 0:06:30]} Be7 {[%emt 0:02:30]} 11. Ne5 {[%emt 0:10:30]} Nc7 {[%emt 0:08:30]} 12. e4 {[%emt 0:05:30]} Bg6 {[%emt 0:01:30]} 13. Nxg6 {[%emt 0:05:30]} hxg6 {[%emt 0:00:30]} 14. Rfd1 {[%emt 0:01:30]} Rc8 {[%emt 0:03:30]} 15. Rac1 {[%emt 0:05:30]} Nd7 {[%emt 0:01:30]} 16. Be3 {[%emt 0:01:30]} Re8 {[%emt 0:02:30]} 17. Qb3 {[%emt 0:05:30]} b6 {[%emt 0:05:30]} 18. d5 {[%emt 0:05:30]} exd5 {[%emt 0:01:30]} 19. exd5 {[%emt 0:00:30]} Nc5 {[%emt 0:06:30]} 20. Bxc5 {[%emt 0:05:30]} Bxc5 {[%emt 0:00:30]} 21. dxc6 {[%emt 0:00:30]} Qe7 {[%emt 0:02:30]} 22. Rd7 {[%emt 0:03:30]} Bxf2+ {[%emt 0:03:30]} 23. Kh1 {[%emt 0:01:30]} Qe6 {[%emt 0:01:30]} 24. Qxe6 {[%emt 0:07:30]} Nxe6 {[%emt 0:03:30]} 25. Rf1 {[%emt 0:02:30]} Bd4 {[%emt 0:01:30]} 26. Nb5 {[%emt 0:01:51]} Be5 {[%emt 0:03:30]} 27. Nxa7 {[%emt 0:05:18]} Rc7 {[%emt 0:03:30]} 28. Rfxf7 {[%emt 0:05:09]} Ra8 {[%emt 0:00:30]} 29. Nb5 {[%emt 0:00:12]} Rxd7 {[%emt 0:00:30]} 30. Rxd7 {[%emt 0:00:30]} Rxa2 {[%emt 0:00:30]} 31. Bd5 {[%emt 0:00:32]} Ra1+ {[%emt 0:00:30]} 32. Kg2 {[%emt 0:00:01]} Kf8 {[%emt 0:01:30]} 33. Bxe6 {[%emt 0:00:30]} Rb1 {[%emt 0:00:00]} 34. b3 {[%emt 0:00:07]} 1-0

[Event "World Junior U20 Girls 2018"]
[Site "Gebze"]
[Date "2018.09.14"]
[Round "10"]
[White "Hereklioglu, Sude"]
[Black "Duran, Esma Doga"]
[Result "1/2-1/2"]
[ECO "D03"]
[WhiteElo "1930"]
[BlackElo "1825"]
[Annotator "NA"]
[PlyCount "61"]
[EventDate "2018.09.05"]
[EventType "swiss"]
[EventCountry "TUR"]
[SourceTitle "playchess.com"]
[Source "ChessBase"]
[SourceQuality "1"]
[TimeControl "40/5400+30:1800+30"]

1. d4 {[%emt 0:00:30]} d5 {[%emt 0:00:30]} 2. Nf3 {[%emt 0:00:30]} Nf6 {[%emt 0:00:30]} 3. Bg5 {[%emt 0:00:30]} Ne4 {[%emt 0:02:30]} 4. Bf4 {[%emt 0:01:30]} Bf5 {[%emt 0:00:30]} 5. Nbd2 {[%emt 0:02:30]} e6 {[%emt 0:00:30]} 6. e3 {[%emt 0:03:30]} Bd6 {[%emt 0:00:30]} 7. Bxd6 {[%emt 0:04:30] LiveBook: 11 Games} Qxd6 {[%emt 0:00:30]} 8. c3 {[%emt 0:01:30]} O-O {[%emt 0:01:30]} 9. Nh4 {[%emt 0:04:30]} Nd7 {[%emt 0:07:30]} 10. Nxf5 {[%emt 0:09:30]} exf5 {[%emt 0:00:30]} 11. Bd3 {[%emt 0:00:30]} Rfe8 $11 {[%emt 0:03:30]} 12. O-O {[%emt 0:02:30]} Re6 {[%emt 0:12:30]} 13. c4 {[%emt 0:06:30]} Rh6 {[%emt 0:02:30]} 14. f4 {[%emt 0:01:30]} c6 {[%emt 0:14:30]} 15. cxd5 {[%emt 0:07:30]} cxd5 {[%emt 0:00:30]} 16. Nf3 {[%emt 0:00:30]} Re6 {[%emt 0:05:30]} 17. Ne5 {[%emt 0:03:30]} f6 {[%emt 0:00:30]} 18. Bxe4 {[%emt 0:00:30]} fxe4 {[%emt 0:01:30]} 19. Nxd7 {[%emt 0:14:30]} Qxd7 {[%emt 0:00:00]} 20. Rc1 {[%emt 0:01:30]} f5 {[%emt 0:05:00]} 21. Kh1 {[%emt 0:02:30]} Rc8 {[%emt 0:00:30]} 22. Rxc8+ {[%emt 0:00:30]} Qxc8 {[%emt 0:00:30]} 23. g4 {[%emt 0:00:30]} Rb6 {[%emt 0:13:30]} 24. gxf5 {[%emt 0:10:59]} Qxf5 {[%emt 0:08:50]} 25. Qa4 {[%emt 0:01:34]} Rxb2 {[%emt 0:12:39]} 26. Qe8+ {[%emt 0:01:02]} Qf8 {[%emt 0:00:30]} 27. Qe6+ {[%emt 0:00:30]} Qf7 {[%emt 0:00:00]} 28. Qc8+ {[%emt 0:01:20]} Qf8 {[%emt 0:00:03]} 29. Qe6+ {[%emt 0:00:00]} Qf7 {[%emt 0:00:10]} 30. Qc8+ {[%emt 0:00:38]} Qf8 {[%emt 0:00:08]} 31. Qe6+ {[%emt 0:00:07]} 1/2-1/2